[Event "Slovakian-ch Youth 2022"]
[Site "Lubovna"]
[Date "2022.05.22"]
[Round "2.1"]
[White "Matejka, Simon"]
[Black "Mazak, Ryan"]
[Result "0-1"]
[ECO "B00"]
[WhiteElo "1235"]
[BlackElo "1575"]
[Annotator "NA COMBH"]
[PlyCount "124"]
[EventDate "2022.05.22"]
[EventCountry "SVK"]
[SourceTitle "playchess.com"]
[Source "ChessBase"]
[SourceQuality "1"]
[TimeControl "40/5400+30:1800+30"]

1. e4 {[%emt 0:00:02]} b6 {[%emt 0:00:08]} 2. Bc4 {[%emt 0:00:17]} e6 {[%emt 0:03:20]} 3. Nc3 {[%emt 0:01:08]} Bb7 {[%emt 0:01:28]} 4. Nf3 {[%emt 0:02:46]} Bb4 {[%emt 0:04:59]} 5. Qe2 {[%emt 0:04:45]} d6 {[%emt 0:08:42]} 6. a3 {[%emt 0:05:36]} Bxc3 {[%emt 0:00:24]} 7. bxc3 {[%emt 0:03:05]} Nd7 {[%emt 0:02:51]} 8. d4 {[%emt 0:04:07]} h6 {[%emt 0:05:10]} 9. O-O {[%emt 0:03:14]} Ngf6 {[%emt 0:02:05]} 10. Bd3 {[%emt 0:03:35]} O-O {[%emt 0:01:20]} 11. Bf4 {[%emt 0:03:09]} a6 {[%emt 0:07:48]} 12. Rfb1 {[%emt 0:05:27]} Re8 {[%emt 0:09:32]} 13. Rd1 {[%emt 0:06:42]} e5 {[%emt 0:07:21]} 14. dxe5 {[%emt 0:05:08]} dxe5 {[%emt 0:02:22]} 15. Nxe5 {[%emt 0:08:22]} Nxe5 {[%emt 0:02:34]} 16. Bxe5 {[%emt 0:01:52]} Rxe5 {[%emt 0:01:18]} 17. f4 {[%emt 0:02:45]} Re7 {[%emt 0:01:42]} 18. Bxa6 {[%emt 0:01:29]} Qc8 {[%emt 0:01:03]} 19. Bxb7 {[%emt 0:01:06]} Qxb7 {[%emt 0:00:19]} 20. e5 {[%emt 0:00:54]} Nd7 {[%emt 0:02:02]} 21. Qg4 {[%emt 0:01:48]} Nc5 {[%emt 0:02:24]} 22. Rd4 {[%emt 0:01:06]} Ree8 {[%emt 0:05:45]} 23. Qf5 {[%emt 0:00:44]} Qc8 {[%emt 0:01:04]} 24. Qh5 {[%emt 0:00:33]} Ne6 {[%emt 0:00:54]} 25. Re4 {[%emt 0:00:44]} Qb7 {[%emt 0:01:18]} 26. Rb4 {[%emt 0:01:42]} c5 {[%emt 0:00:48]} 27. Rb3 {[%emt 0:01:09]} Nxf4 {[%emt 0:00:45]} 28. Qg4 {[%emt 0:00:11]} Ng6 {[%emt 0:00:40]} 29. Rab1 {[%emt 0:00:32]} Nxe5 {[%emt 0:00:40]} 30. Qf4 {[%emt 0:00:24]} Ng6 {[%emt 0:01:55]} 31. Qg4 {[%emt 0:00:30]} h5 {[%emt 0:01:53]} 32. Qxh5 {[%emt 0:01:24]} Qxg2+ {[%emt 0:00:54]} 33. Kxg2 {[%emt 0:00:03]} Nf4+ {[%emt 0:00:12]} 34. Kf2 {[%emt 0:00:15]} Nxh5 {[%emt 0:00:11]} 35. Rxb6 {[%emt 0:00:33]} Rxa3 {[%emt 0:00:19]} 36. R1b3 {[%emt 0:00:30]} Rxb3 {[%emt 0:00:24]} 37. cxb3 {[%emt 0:00:17]} Nf6 {[%emt 0:00:25]} 38. Rc6 {[%emt 0:01:55]} Rb8 {[%emt 0:00:19]} 39. Ke2 {[%emt 0:00:55]} Rxb3 {[%emt 0:01:58]} 40. Rc8+ {[%emt 0:00:30]} Kh7 {[%emt 0:00:10]} 41. Rxc5 {[%emt 0:30:14]} Rb2+ {[%emt 0:30:40]} 42. Kd3 {[%emt 0:00:58]} Rd2+ {[%emt 0:01:23]} 43. Kxd2 {[%emt 0:01:26]} Ne4+ {[%emt 0:00:10]} 44. Ke3 {[%emt 0:00:10]} Nxc5 {[%emt 0:00:13]} 45. Kf3 {[%emt 0:00:12]} Nd7 {[%emt 0:00:28]} 46. Kf4 {[%emt 0:00:16]} Kg6 {[%emt 0:00:12]} 47. c4 {[%emt 0:00:24]} f5 {[%emt 0:00:19]} 48. h3 {[%emt 0:00:33]} Kf6 {[%emt 0:00:13]} 49. h4 {[%emt 0:00:14]} g6 {[%emt 0:00:48]} 50. Kg3 {[%emt 0:00:37]} Ke5 {[%emt 0:00:57]} 51. Kf3 {[%emt 0:00:11]} f4 {[%emt 0:00:33]} 52. Ke2 {[%emt 0:00:31]} Kf5 {[%emt 0:00:19]} 53. c5 {[%emt 0:00:17]} Nxc5 {[%emt 0:00:09]} 54. Kf3 {[%emt 0:00:07]} Ne4 {[%emt 0:00:12]} 55. Ke2 {[%emt 0:00:21]} Kg4 {[%emt 0:00:07]} 56. h5 {[%emt 0:00:21]} gxh5 {[%emt 0:00:25]} 57. Kf1 {[%emt 0:00:09]} Kg3 {[%emt 0:00:26]} 58. Kg1 {[%emt 0:00:13]} f3 {[%emt 0:00:21]} 59. Kh1 {[%emt 0:00:23]} Kf2 {[%emt 0:01:14]} 60. Kh2 {[%emt 0:00:25]} Ke2 {[%emt 0:00:24]} 61. Kh3 {[%emt 0:00:16]} f2 {[%emt 0:00:49]} 62. Kh2 {[%emt 0:00:08]} Nc5 {[%emt 0:00:19]} 0-1

[Event "Slovakian-ch Youth 2022"]
[Site "Lubovna"]
[Date "2022.05.22"]
[Round "2.2"]
[White "Rucek, Kristian"]
[Black "Turcan, Richard"]
[Result "0-1"]
[ECO "A79"]
[WhiteElo "2128"]
[BlackElo "2278"]
[Annotator "TA"]
[PlyCount "110"]
[EventDate "2022.05.22"]
[EventCountry "SVK"]
[SourceTitle "playchess.com"]
[Source "ChessBase"]
[SourceQuality "1"]
[TimeControl "40/5400+30:1800+30"]

{[%evp 26,110,65,35,33,33,46,26,83,-53,-58,-67,333,-55,-37,-73,-50,-70,-78,-68,-54,-98,-4,-56,-87,-79,0,0,0,-7,-6,-24,-81,-55,-24,-306,-329,-279,-265,-438,-438,-440,-435,-409,-401,-406,-401,-472,-450,-1543,-1498,-1179,-1259,-80,-1524,-1106,-1377,-12836,-12835,-1668,-558,-508,-469,-12839,-12839,-12837,-703,-705,-707,-349,-666,-590,-576,-507,-482,-465,-246,-12837,-12838,-12844,-12844,-12845,-12845,-12845,-12846,-12846,-12847]} 1. d4 {[%emt 0:00:04]} Nf6 {[%emt 0:03:02]} 2. c4 {[%emt 0:00:18]} c5 {[%emt 0:00:10]} 3. d5 {[%emt 0:00:21]} e6 {[%emt 0:00:04]} 4. Nc3 {[%emt 0:00:04]} exd5 {[%emt 0:00:05]} 5. cxd5 {[%emt 0:00:04]} d6 {[%emt 0:00:33]} 6. Nf3 {[%emt 0:00:33]} g6 {[%emt 0:00:08]} 7. Nd2 {[%emt 0:00:42]} Bg7 {[%emt 0:00:07]} 8. e4 {[%emt 0:00:04]} O-O {[%emt 0:00:11]} 9. Be2 {[%emt 0:00:07]} Re8 {[%emt 0:00:48]} 10. O-O {[%emt 0:00:11]} Na6 {[%emt 0:00:59]} 11. f3 {[%emt 0:00:45]} Nc7 {[%emt 0:00:28]} 12. a4 {[%emt 0:00:11]} b6 {[%emt 0:00:10]} 13. Nc4 {[%emt 0:00:11]} Ba6 {[%emt 0:00:11]} 14. Rb1 {[%emt 0:00:33]} Bxc4 {[%emt 0:04:25] A79: Modern Benoni: Classical: 9...Re8 10 Nd2 Na6 11 f3.} 15. Bxc4 {[%emt 0:00:01]} a6 {[%emt 0:00:11]} 16. b4 {[%emt 0:01:17] [#]} Nh5 $146 {[%emt 0:06:31] [#]} (16... Nd7 $11 17. bxc5 Nxc5) ({Predecessor:} 16... Nd7 17. bxc5 bxc5 18. Qc2 Qf6 19. Ne2 Ne5 20. Rb7 Qd8 21. Bd2 a5 22. Rfb1 Nxc4 23. Qxc4 {1-0 (32) Gyimesi,Z (2594)-Cvitan,O (2516) Sibenik 2009}) 17. Bd2 {[%emt 0:00:36]} (17. bxc5 $1 $16 bxc5 18. Qc2) 17... Bd4+ $15 {[%emt 0:09:55]} 18. Kh1 {[%emt 0:00:14] [#]} Ng3+ {[%emt 0:00:25]} 19. hxg3 {[%emt 0:00:21]} Re5 $1 {[%emt 0:00:04][%cal Re5h5]} 20. f4 {[%emt 0:02:50]} Rh5+ {[%emt 0:00:43]} 21. Qxh5 {[%emt 0:00:10]} gxh5 {[%emt 0:00:08]} 22. bxc5 {[%emt 0:11:09]} bxc5 {[%emt 0:01:52]} 23. e5 $1 {[%emt 0:02:27]} Ne8 {[%emt 0:18:48]} (23... dxe5 24. fxe5 Bxe5 25. Ne4 $11 (25. Rf5 Bg7 $11)) (23... h4 $17 24. g4 Qd7) 24. Ne4 {[%emt 0:18:34]} (24. e6 $1 $11) 24... h4 {[%emt 0:09:46]} 25. g4 {[%emt 0:02:27]} Qd7 {[%emt 0:01:28]} ({Black should play} 25... Rb8 $1 $17 26. e6 Rxb1 27. exf7+ Kxf7 28. Ng5+ Kg8 29. Rxb1 Qd7) 26. e6 $11 {[%emt 0:07:05]} fxe6 {[%emt 0:13:53]} 27. dxe6 {[%emt 0:04:57]} Qc6 $36 {[%emt 0:00:30][%mdl 2048] Black has good play.} 28. e7+ $1 {[%emt 0:29:24]} d5 {[%emt 0:02:33]} 29. Rb6 {[%emt 0:00:07]} Qd7 {[%emt 0:11:52] Really sharp!} 30. Rd6 $2 {[%emt 0:00:13][%mdl 8192] White is now going downhill.} Nxd6 $19 {[%emt 0:01:16]} 31. Bxd5+ {[%emt 0:00:04]} Kh8 {[%emt 0:00:35]} 32. Nxd6 {[%emt 0:07:25] [#]} (32. Bxa8 {only move.} Qxe7 33. Nxd6 Qxd6 34. Bf3) 32... Qxd6 $1 {[%emt 0:00:44]} 33. Bxa8 {[%emt 0:00:05]} Qxe7 {[%emt 0:00:05] White must now prevent ...Qe2.} 34. Re1 {[%emt 0:00:25] Inhibits Qe2.} Qd7 {[%emt 0:00:56][%csl LRa4,LRg4]} 35. f5 {[%emt 0:06:42]} c4 {[%emt 0:01:26][%cal Bc5c4,Bc4c3][%mdl 32]} 36. Bh6 {[%emt 0:01:18]} c3 {[%emt 0:03:48] ...c2 is the strong threat.} 37. Bd5 {[%emt 0:03:58]} (37. g3 $142 c2 38. Kg2) 37... Qxd5 {[%emt 0:01:02]} 38. Re8+ {[%emt 0:00:04]} Qg8 {[%emt 0:00:04]} 39. Rxg8+ {[%emt 0:00:04]} Kxg8 {[%emt 0:00:04][%mdl 4096] Endgame KB-KB} 40. Bc1 {[%emt 0:02:05]} Bf2 {[%emt 0:00:14]} 41. Kh2 {[%emt 0:04:30]} Be1 {[%emt 0:00:21]} 42. Kh3 {[%emt 0:00:06]} Kf7 {[%emt 0:00:32]} (42... Bd2 $142 43. Ba3 Bg5) 43. Ba3 {[%emt 0:06:04]} h6 {[%emt 0:00:36][%cal Bh7h6,Bh6g5][%mdl 32]} 44. g5 {[%emt 0:01:25]} (44. Bc5 $142 Bd2 45. Bb4) 44... hxg5 {[%emt 0:00:07]} 45. Kg4 {[%emt 0:00:12]} Bd2 {[%emt 0:00:10]} ({Worse is} 45... Kf6 46. Bc5 $19) (45... a5 $142 46. Kxg5 h3 47. gxh3 Bd2+ 48. Kg4 c2) 46. Bb4 {[%emt 0:00:26]} Kf6 {[%emt 0:01:54]} 47. Ba5 {[%emt 0:01:05]} Be1 {[%emt 0:00:10]} 48. Bb6 {[%emt 0:01:21]} Kf7 {[%emt 0:01:02] Strongly threatening ...Bg3.} 49. Bc5 {[%emt 0:01:45]} a5 {[%emt 0:02:14]} 50. Bb6 {[%emt 0:00:33] [#]} Ke8 {[%emt 0:01:52] Against Bd8} (50... c2 51. Be3 Bc3 52. Bc1 $19) 51. Kf3 $2 {[%emt 0:01:39]} ({But not} 51. Be3 $2 Bd2 52. Bd4 c2 $19) (51. Kh5) 51... Bg3 {[%emt 0:00:59] ( -> ...c2). Black is clearly winning.} 52. Bxa5 {[%emt 0:00:29] [#]} c2 $1 {[%emt 0:00:09]} 53. Bd2 {[%emt 0:00:58]} Bf4 $1 {[%emt 0:00:05]} 54. Ke2 {[%emt 0:00:13]} Bxd2 {[%emt 0:00:41]} 55. Kxd2 {[%emt 0:00:09]} g4 {[%emt 0:00:04] Weighted Error Value: White=0.81/Black=0.29 (precise)} 0-1

[Event "Slovakian-ch Youth 2022"]
[Site "Lubovna"]
[Date "2022.05.22"]
[Round "2.2"]
[White "Hall, Richard V M"]
[Black "Kampe, Thomas Andre Ankil"]
[Result "0-1"]
[ECO "C00"]
[WhiteElo "2015"]
[BlackElo "1693"]
[Annotator "TA"]
[PlyCount "102"]
[EventDate "2022.05.22"]
[EventCountry "SVK"]
[SourceTitle "playchess.com"]
[Source "ChessBase"]
[SourceQuality "1"]
[TimeControl "40/5400+30:1800+30"]

{[%evp 9,101,-25,0,0,60,-151,-159,-228,-231,-248,-229,-208,-61,-289,-161,-179,-53,-39,-38,-65,28,-35,-29,-81,-73,-88,2,-75,-67,-76,-24,-54,18,20,41,6,10,-13,-16,-158,-172,-664,-553,-702,-691,-864,-856,-1297,-1287,-1256,-1181,-1111,-927,-5074,-4918,-29979,-29980,-29987,-29988,-29988,-29989,-29990,-29991,-29992,-29993,-29993,-29994,-29995,-29996,-29996,-29995,-29995,-29996,-29996,-29995,-29997,-29996,-29996,-29997,-29998,-29997,-29998,-29997,-29997,-29996,-29997,-29997,-29998,-29997,-29997,-29998,-29998,-29999,-29999]} 1. e4 {[%emt 0:00:01]} e6 {[%emt 0:00:01][%cal Be7e6,Be6d5,Bd5d4,Bd4d3][%mdl 32]} 2. Nf3 {[%emt 0:00:27]} d5 {[%emt 0:00:07]} 3. exd5 {[%emt 0:00:26]} exd5 {[%emt 0:00:02]} 4. c4 {[%emt 0:00:43]} d4 {[%emt 0:00:30]} 5. Bd3 {[%emt 0:00:20]} Nc6 {[%emt 0:00:15] [#]} 6. O-O $146 {[%emt 0:00:27] C00: French: Unusual White 2nd moves.} ({Predecessor:} 6. Be4 d3 7. O-O Nf6 8. Bxc6+ bxc6 9. Re1+ Be7 10. Ne5 Bb7 11. Qb3 Rb8 12. Qxd3 {1-0 (19) Vio,M (1476)-Courteille,T (1264) LSS email 2014}) 6... Nb4 {[%emt 0:00:11]} (6... Be7 $11) 7. Be2 $2 {[%emt 0:00:19]} (7. Qa4+ $1 $14 {stays ahead.} Qd7 8. Re1+ Kd8 9. Bc2) 7... d3 $1 $17 {[%emt 0:00:25] Black is more active.} 8. a3 {[%emt 0:00:29]} (8. Re1 $17 {was worth a try.} dxe2 9. d4) 8... Nc2 $19 {[%emt 0:00:19]} ({Less strong is} 8... dxe2 9. Qxe2+ Qe7 10. Qxe7+ Nxe7 11. axb4 $14) 9. Ra2 {[%emt 0:02:42][%cal Ob1c3]} dxe2 {[%emt 0:00:21]} 10. Qxe2+ {[%emt 0:00:48] [#]} Qe7 {[%emt 0:00:41]} (10... Ne7 $1 $19 {Threatens to win with ...Bf5.} 11. Nc3 Nd4 12. Nxd4 Qxd4) 11. Qxe7+ $2 {[%emt 0:00:30]} ({White should try} 11. Qd3 $15 Bg4 12. Qxc2 Bxf3 13. gxf3) 11... Bxe7 {[%emt 0:00:18]} (11... Nxe7 $142 12. Nc3 Bg4) 12. b4 {[%emt 0:00:32]} Nxb4 {[%emt 0:00:35]} 13. axb4 $15 {[%emt 0:00:21]} Bxb4 {[%emt 0:00:32]} 14. Re1+ {[%emt 0:00:36]} Be7 {[%emt 0:00:12]} ({Reject} 14... Ne7 15. Ba3 Bxa3 16. Nxa3 $11) (14... Be6 $1 $15) 15. Ba3 {[%emt 0:00:36]} (15. d4 $11) 15... Be6 {[%emt 0:00:36]} 16. d3 {[%emt 0:00:21]} (16. d4 $11 c6 17. Nbd2) 16... Bxa3 {[%emt 0:00:59]} 17. Nxa3 {[%emt 0:00:19]} Nf6 {[%emt 0:02:33]} (17... a6 $17) 18. d4 {[%emt 0:00:31]} (18. Rb1 $11 {remains equal.}) 18... O-O {[%emt 0:00:17]} 19. d5 {[%emt 0:00:21] [#]} Bg4 {[%emt 0:00:19]} (19... Bd7 $1 $17) 20. Ne5 {[%emt 0:00:49]} Rfe8 {[%emt 0:00:42]} ({Black should play} 20... a6 $1 $15) 21. Nb5 $11 {[%emt 0:01:03][%csl LRa7,LRc7]} Rac8 {[%emt 0:00:54]} 22. Nxa7 {[%emt 0:00:25]} Ra8 {[%emt 0:00:27]} 23. f3 {[%emt 0:00:54]} Bf5 {[%emt 0:00:36]} 24. g3 {[%emt 0:00:38] Black converts the advantage convincingly.} (24. Ra3 $11) 24... Nd7 $17 {[%emt 0:00:18]} 25. Kf1 $2 {[%emt 0:00:39]} (25. f4) 25... Rxe5 {[%emt 0:00:32]} 26. Rxe5 {[%emt 0:00:49]} Nxe5 {[%emt 0:00:15]} 27. f4 {[%emt 0:00:33]} Nxc4 {[%emt 0:01:07]} 28. Re2 {[%emt 0:00:28]} Bd3 {[%emt 0:00:22]} 29. Nb5 {[%emt 0:00:36]} Bxe2+ {[%emt 0:00:30]} 30. Kxe2 {[%emt 0:00:17]} c6 {[%emt 0:00:26]} 31. Nc7 {[%emt 0:00:23]} Rc8 {[%emt 0:00:15]} 32. d6 {[%emt 0:00:33]} Nxd6 {[%emt 0:00:32] Black mates.} 33. h4 {[%emt 0:00:33]} Rxc7 {[%emt 0:00:14]} 34. g4 {[%emt 0:01:02]} b5 {[%emt 0:00:10]} 35. Ke3 {[%emt 0:00:47]} b4 {[%emt 0:00:29]} 36. f5 {[%emt 0:00:35]} b3 {[%emt 0:00:12]} 37. Kd2 {[%emt 0:00:23]} b2 {[%emt 0:00:16]} 38. Kc2 {[%emt 0:00:18]} Rb7 {[%emt 0:00:17]} 39. Kb1 {[%emt 0:00:41]} f6 {[%emt 0:00:22]} 40. g5 {[%emt 0:00:41]} Nxf5 {[%emt 0:00:28]} 41. gxf6 {[%emt 0:30:09]} Nxh4 {[%emt 0:30:29]} 42. fxg7 {[%emt 0:00:04]} c5 43. Kc2 {[%emt 0:02:30]} b1=Q+ {[%emt 0:00:45]} 44. Kc3 {[%emt 0:00:28]} Rb2 {[%emt 0:00:22][%csl Gb2][%cal Rb1c2]} 45. Kc4 {[%emt 0:00:48]} Qc1+ {[%emt 0:00:02]} 46. Kd5 {[%emt 0:00:42]} Rd2+ {[%emt 0:00:58]} 47. Ke5 {[%emt 0:00:19]} Qe1+ {[%emt 0:00:30]} 48. Kf6 {[%emt 0:00:26]} Rf2+ {[%emt 0:00:03]} 49. Kg5 {[%emt 0:01:26]} Qg1+ {[%emt 0:00:22]} 50. Kh5 {[%emt 0:00:21]} Rh2 {[%emt 0:00:13][%csl Gh4,Gh7][%cal Rg1g6]} 51. Kh6 {[%emt 0:01:35]} Nf3# {[%emt 0:00:30] Weighted Error Value: White=1.17/Black=0.48} 0-1

[Event "Slovakian-ch Youth 2022"]
[Site "Lubovna"]
[Date "2022.05.22"]
[Round "2.2"]
[White "Smetana, Peter"]
[Black "Pongo, Aron"]
[Result "0-1"]
[ECO "C14"]
[WhiteElo "1740"]
[BlackElo "1566"]
[Annotator "NA COMBH"]
[PlyCount "120"]
[EventDate "2022.05.22"]
[EventCountry "SVK"]
[SourceTitle "playchess.com"]
[Source "ChessBase"]
[SourceQuality "1"]
[TimeControl "40/5400+30:1800+30"]

1. e4 {[%emt 0:01:11]} e6 {[%emt 0:00:01]} 2. d4 {[%emt 0:00:38]} d5 {[%emt 0:00:01]} 3. Nc3 {[%emt 0:01:09]} Nf6 {[%emt 0:00:07]} 4. Bg5 {[%emt 0:01:12]} Be7 {[%emt 0:00:13]} 5. e5 {[%emt 0:01:07]} Nfd7 {[%emt 0:00:11]} 6. Bxe7 {[%emt 0:02:16]} Qxe7 {[%emt 0:00:04]} 7. f4 {[%emt 0:06:28]} a6 {[%emt 0:09:16]} 8. Nf3 {[%emt 0:02:49]} c5 {[%emt 0:00:24]} 9. dxc5 {[%emt 0:02:36]} Qxc5 {[%emt 0:04:57]} 10. Qd2 {[%emt 0:02:31]} Nc6 {[%emt 0:04:27]} 11. O-O-O {[%emt 0:01:56]} b5 {[%emt 0:03:16]} 12. Kb1 {[%emt 0:04:21]} Nb6 {[%emt 0:01:31]} 13. b3 {[%emt 0:02:52]} Bd7 {[%emt 0:04:53]} 14. Nd4 {[%emt 0:06:48]} b4 {[%emt 0:09:39]} 15. Nce2 {[%emt 0:02:27]} Nxd4 {[%emt 0:05:38]} 16. Qxd4 {[%emt 0:00:57]} Qxd4 {[%emt 0:00:45]} 17. Nxd4 {[%emt 0:00:34]} O-O {[%emt 0:02:08]} 18. Bd3 {[%emt 0:02:07]} Rfc8 {[%emt 0:03:31]} 19. Kb2 {[%emt 0:02:24]} Rc5 {[%emt 0:03:12]} 20. g4 {[%emt 0:01:40]} a5 {[%emt 0:04:25]} 21. h4 {[%emt 0:01:49]} Nc8 {[%emt 0:02:37]} 22. h5 {[%emt 0:04:54]} Na7 {[%emt 0:00:58]} 23. g5 {[%emt 0:04:23]} Bb5 {[%emt 0:01:53]} 24. Bxb5 {[%emt 0:02:35]} Nxb5 {[%emt 0:00:08]} 25. Nxb5 {[%emt 0:01:40]} Rxb5 {[%emt 0:00:23]} 26. Rd4 {[%emt 0:01:50]} Rc8 {[%emt 0:02:11]} 27. Rh2 {[%emt 0:01:31]} Rbc5 {[%emt 0:01:16]} 28. Rhd2 {[%emt 0:02:12]} g6 {[%emt 0:10:44]} 29. h6 {[%emt 0:01:34]} Rc3 {[%emt 0:01:06]} 30. R4d3 {[%emt 0:00:27]} Kf8 {[%emt 0:00:51]} 31. Kb1 {[%emt 0:00:55]} Ke7 {[%emt 0:00:19]} 32. Rxc3 {[%emt 0:00:15]} Rxc3 {[%emt 0:00:39]} 33. Rd3 {[%emt 0:00:22]} Kd7 {[%emt 0:14:16]} 34. Rxc3 {[%emt 0:03:35]} bxc3 {[%emt 0:00:01]} 35. Kc1 {[%emt 0:00:14]} Kc6 {[%emt 0:00:28]} 36. Kd1 {[%emt 0:00:09]} Kc5 {[%emt 0:00:15]} 37. Ke2 {[%emt 0:00:07]} Kb4 {[%emt 0:03:18]} 38. a4 {[%emt 0:00:11]} Ka3 {[%emt 0:02:52]} 39. Ke3 {[%emt 0:01:30]} Kb2 {[%emt 0:01:27]} 40. Kd3 {[%emt 0:00:16]} d4 {[%emt 0:00:05]} 41. b4 {[%emt 0:30:12]} axb4 {[%emt 0:30:24]} 42. a5 {[%emt 0:00:04]} b3 {[%emt 0:00:20]} 43. a6 {[%emt 0:00:02]} bxc2 {[%emt 0:00:15]} 44. a7 {[%emt 0:00:03]} c1=Q {[%emt 0:00:14]} 45. a8=Q {[%emt 0:00:11]} Qd1+ {[%emt 0:05:13]} 46. Kc4 {[%emt 0:00:10]} Qb3+ {[%emt 0:00:35]} 47. Kc5 {[%emt 0:03:30]} Qd5+ {[%emt 0:00:16]} 48. Qxd5 {[%emt 0:01:02]} exd5 {[%emt 0:00:02]} 49. f5 {[%emt 0:00:59]} gxf5 {[%emt 0:01:06]} 50. e6 {[%emt 0:00:27]} fxe6 {[%emt 0:00:39]} 51. g6 {[%emt 0:00:08]} c2 {[%emt 0:00:10]} 52. g7 {[%emt 0:00:04]} c1=Q+ {[%emt 0:00:07]} 53. Kxd4 {[%emt 0:00:09]} Qg5 {[%emt 0:00:17]} 54. Ke5 {[%emt 0:00:39]} f4+ {[%emt 0:00:13]} 55. Kd4 {[%emt 0:00:31]} f3 {[%emt 0:00:35]} 56. Kd3 {[%emt 0:00:05]} e5 {[%emt 0:00:48]} 57. g8=Q {[%emt 0:00:28]} Qxg8 {[%emt 0:00:08]} 58. Ke3 {[%emt 0:00:04]} Qg5+ {[%emt 0:00:15]} 59. Kd3 {[%emt 0:00:07]} Qf5+ {[%emt 0:00:32]} 60. Ke3 {[%emt 0:00:24]} Qe4+ {[%emt 0:00:34]} 0-1

[Event "Slovakian-ch Youth 2022"]
[Site "Lubovna"]
[Date "2022.05.22"]
[Round "2.3"]
[White "Bochnicka, Vladimir"]
[Black "Petrek, Dominik"]
[Result "1/2-1/2"]
[ECO "A28"]
[WhiteElo "2267"]
[BlackElo "2110"]
[Annotator "TA"]
[PlyCount "107"]
[EventDate "2022.05.22"]
[EventCountry "SVK"]
[SourceTitle "playchess.com"]
[Source "ChessBase"]
[SourceQuality "1"]
[TimeControl "40/5400+30:1800+30"]

{[%evp 10,107,36,32,40,41,50,24,52,52,62,43,60,36,26,-9,-13,-12,-9,-17,-14,-15,-20,-20,-9,-10,0,0,0,0,0,-20,-9,-13,8,6,15,0,0,0,0,0,8,5,11,15,6,8,9,0,0,0,0,0,0,0,0,0,0,0,1,0,0,0,0,-8,0,0,0,0,0,0,0,0,0,-4,-4,-83,0,0,0,-114,0,0,0,0,0,0,0,0,8,0,0,0,0,0,0,-8,-8,-8]} 1. c4 {[%emt 0:00:04]} e5 {[%emt 0:00:44]} 2. Nc3 {[%emt 0:00:06]} Nf6 {[%emt 0:00:48]} 3. Nf3 {[%emt 0:00:17]} Nc6 {[%emt 0:00:36]} 4. e3 {[%emt 0:00:11]} Be7 {[%emt 0:03:42]} 5. a3 {[%emt 0:00:43]} a5 {[%emt 0:01:09]} 6. d4 {[%emt 0:04:01]} d6 {[%emt 0:09:35] A28: English Opening: Four Knights Variation.} 7. Bd3 {[%emt 0:06:00]} O-O {[%emt 0:02:12]} 8. h3 {[%emt 0:04:23] [#]} Re8 $146 {[%emt 0:14:33] White has an edge.} ({Predecessor:} 8... Ne8 9. d5 Nb8 10. e4 Na6 11. b4 f5 12. exf5 Bxf5 13. Bxf5 Rxf5 14. Rb1 axb4 15. axb4 {1-0 (29) Poluljahov,A (2525)-Kislov,M (2370) Swidnica 2000}) 9. O-O {[%emt 0:02:20]} Bf8 {[%emt 0:07:20]} 10. Qc2 {[%emt 0:03:20]} g6 {[%emt 0:03:48][%cal Oa5a4]} 11. Rd1 {[%emt 0:13:47]} Qe7 {[%emt 0:10:54] [#] Threatens to win with ...e4.} 12. Nd5 {[%emt 0:18:55]} Nxd5 {[%emt 0:01:00]} 13. cxd5 {[%emt 0:01:12]} e4 {[%emt 0:00:31]} 14. Bxe4 {[%emt 0:00:27]} Qxe4 {[%emt 0:00:36]} 15. Qxe4 {[%emt 0:00:14]} Rxe4 {[%emt 0:00:03]} 16. dxc6 {[%emt 0:00:06]} bxc6 {[%emt 0:00:41]} 17. Bd2 {[%emt 0:04:28]} Bd7 {[%emt 0:02:48]} 18. b4 {[%emt 0:11:05]} axb4 {[%emt 0:03:17]} 19. axb4 {[%emt 0:02:06]} Ree8 {[%emt 0:00:51]} 20. Rdc1 {[%emt 0:02:24]} Rxa1 {[%emt 0:08:19]} 21. Rxa1 {[%emt 0:00:08]} f6 {[%emt 0:06:10]} 22. Ra7 {[%emt 0:02:34]} Rc8 {[%emt 0:00:06]} 23. e4 {[%emt 0:02:08]} c5 {[%emt 0:02:50]} 24. d5 {[%emt 0:05:26]} Bb5 {[%emt 0:05:08]} 25. bxc5 {[%emt 0:03:11]} Bd3 {[%emt 0:01:39]} 26. Ba5 {[%emt 0:05:02]} dxc5 {[%emt 0:05:27]} 27. Bxc7 {[%emt 0:02:13] e5 is the strong threat.} Bxe4 {[%emt 0:02:50]} 28. d6 {[%emt 0:00:42] aiming for d7.} Bc6 {[%emt 0:00:36]} 29. Ra5 {[%emt 0:01:03]} c4 {[%emt 0:00:33]} 30. Rc5 {[%emt 0:00:42]} Bd7 {[%emt 0:00:25]} 31. Nd2 {[%emt 0:01:52]} Ra8 {[%emt 0:02:46]} 32. Rxc4 {[%emt 0:01:08] Hoping for Ne4.} Ra1+ {[%emt 0:01:25]} 33. Kh2 {[%emt 0:00:02] And now Ne4 would win.} Rd1 {[%emt 0:00:08]} 34. Ne4 {[%emt 0:01:19]} Kf7 {[%emt 0:00:24]} 35. f4 {[%emt 0:00:20]} Bf5 {[%emt 0:00:49]} 36. Nc3 {[%emt 0:01:39]} Rd3 {[%emt 0:01:23]} 37. Nb5 {[%emt 0:00:39]} Bd7 {[%emt 0:00:13]} 38. Nd4 {[%emt 0:00:38]} Bh6 {[%emt 0:01:15]} 39. Nf3 {[%emt 0:00:45]} Bf8 {[%emt 0:00:48]} 40. Nd4 {[%emt 0:00:41]} Bh6 {[%emt 0:01:14]} 41. Nf3 {[%emt 0:08:51]} Ke6 {[%emt 0:03:05]} 42. Ne1 {[%emt 0:10:12]} Kd5 {[%emt 0:05:47]} 43. Rb4 {[%emt 0:02:58] [#]} (43. Nxd3 $11 {keeps the balance.} Kxc4 44. Nb2+ Kc3 45. Nd1+ Kd2 46. Nf2) 43... Rd4 {[%emt 0:01:27]} ({Black should try} 43... Re3 $1 $17 {[%cal Re3e1]} 44. Nf3 Re4) 44. Rxd4+ $11 {[%emt 0:00:51]} Kxd4 {[%emt 0:00:08][%mdl 4096] Endgame KBB-KBN} 45. Kg3 {[%emt 0:00:15]} (45. g3 $11) 45... Kd5 {[%emt 0:00:37]} (45... Ke4 $17 46. Kf2 Bxf4) 46. Nd3 {[%emt 0:02:04] The position is equal.} Bf8 {[%emt 0:00:29]} 47. Bd8 {[%emt 0:00:20]} Bxd6 {[%emt 0:07:36]} 48. Bxf6 {[%emt 0:00:12]} Bf5 {[%emt 0:02:06]} 49. Nf2 {[%emt 0:01:41]} h5 {[%emt 0:00:38]} 50. Nd1 {[%emt 0:02:15]} Ke4 {[%emt 0:02:05]} 51. Nc3+ {[%emt 0:00:14]} Ke3 {[%emt 0:00:53]} 52. Bg5 {[%emt 0:00:13]} Be6 {[%emt 0:01:01]} 53. Nb5 {[%emt 0:01:20]} Bb8 {[%emt 0:00:36]} 54. Nc3 {[%emt 0:01:36] Weighted Error Value: White=0.12 (very precise) /Black=0.09 (flawless)} 1/2-1/2